[Event "Titled Tuesday Blitz January 04 2022"]
[White "Albornoz Cabrera, Carlos Daniel"]
[Black "Taichman, Ori"]
[WhiteFideId "3518736"]
[BlackFideId "2804069"]
[WhiteElo "2490"]
[BlackElo "2227"]
[Result "1-0"]
[Round "01"]
[TimeControl "180+1"]
[Date "2022.01.04"]
[WhiteClock "0:00:21"]
[BlackClock "0:00:04"]

1. e4 {[%clk 0:03:00]}  c5 {[%clk 0:02:57]} 2. Nf3 {[%clk 0:03:00]}  Nc6 {[%clk 0:02:57]} 3. Bb5 {[%clk 0:03:00]}  d6 {[%clk 0:02:55]} 4. O-O {[%clk 0:03:00]}  Bd7 {[%clk 0:02:55]} 5. c3 {[%clk 0:02:59]}  Nf6 {[%clk 0:02:55]} 6. Re1 {[%clk 0:02:59]}  a6 {[%clk 0:02:56]} 7. Bf1 {[%clk 0:02:59]}  Bg4 {[%clk 0:02:56]} 8. h3 {[%clk 0:02:57]}  Bxf3 {[%clk 0:02:56]} 9. Qxf3 {[%clk 0:02:57]}  g6 {[%clk 0:02:57]} 10. d3 {[%clk 0:02:56]}  Bg7 {[%clk 0:02:57]} 11. Be3 {[%clk 0:02:56]}  Nd7 {[%clk 0:02:58]} 12. Nd2 {[%clk 0:02:56]}  b5 {[%clk 0:02:58]} 13. Qd1 {[%clk 0:02:53]}  b4 {[%clk 0:02:53]} 14. Qc2 {[%clk 0:02:53]}  O-O {[%clk 0:02:52]} 15. Nc4 {[%clk 0:02:46]}  Rb8 {[%clk 0:02:48]} 16. Rab1 {[%clk 0:02:45]}  Nb6 {[%clk 0:02:39]} 17. Nd2 {[%clk 0:02:45]}  Qd7 {[%clk 0:02:32]} 18. Rec1 {[%clk 0:02:26]}  Rfc8 {[%clk 0:02:31]} 19. Qd1 {[%clk 0:02:27]}  a5 {[%clk 0:02:12]} 20. Nf3 {[%clk 0:02:22]}  a4 {[%clk 0:02:05]} 21. d4 {[%clk 0:02:21]}  a3 {[%clk 0:01:56]} 22. bxa3 {[%clk 0:02:16]}  bxc3 {[%clk 0:01:56]} 23. Rxc3 {[%clk 0:02:15]}  cxd4 {[%clk 0:01:47]} 24. Nxd4 {[%clk 0:02:15]}  Nxd4 {[%clk 0:01:40]} 25. Rxc8+ {[%clk 0:02:14]}  Qxc8 {[%clk 0:01:24]} 26. Bxd4 {[%clk 0:02:14]}  Nd7 {[%clk 0:01:11]} 27. Bxg7 {[%clk 0:02:12]}  Kxg7 {[%clk 0:01:10]} 28. Bb5 {[%clk 0:02:06]}  Nc5 {[%clk 0:01:05]} 29. Qd4+ {[%clk 0:02:01]}  f6 {[%clk 0:01:05]} 30. a4 {[%clk 0:02:00]}  Qc7 {[%clk 0:01:01]} 31. Rc1 {[%clk 0:01:52]}  Qb7 {[%clk 0:00:46]} 32. Rc4 {[%clk 0:01:47]}  Nxe4 {[%clk 0:00:41]} 33. Rc1 {[%clk 0:01:32]}  d5 {[%clk 0:00:37]} 34. Bc6 {[%clk 0:01:28]}  Qb2 {[%clk 0:00:34]} 35. Qxb2 {[%clk 0:01:28]}  Rxb2 {[%clk 0:00:34]} 36. Bxd5 {[%clk 0:01:28]}  Nxf2 {[%clk 0:00:32]} 37. Rc3 {[%clk 0:01:21]}  Nd1 {[%clk 0:00:28]} 38. Rc7 {[%clk 0:01:16]}  Kh6 {[%clk 0:00:21]} 39. Rxe7 {[%clk 0:01:09]}  Nc3 {[%clk 0:00:21]} 40. Bg8 {[%clk 0:01:09]}  Nxa4 {[%clk 0:00:18]} 41. Rxh7+ {[%clk 0:01:04]}  Kg5 {[%clk 0:00:18]} 42. Ra7 {[%clk 0:01:04]}  Nc3 {[%clk 0:00:18]} 43. Kh2 {[%clk 0:01:02]}  Ne2 {[%clk 0:00:15]} 44. Ra5+ {[%clk 0:00:59]}  f5 {[%clk 0:00:16]} 45. Bd5 {[%clk 0:00:58]}  Nf4 {[%clk 0:00:16]} 46. Bf3 {[%clk 0:00:57]}  Nd3 {[%clk 0:00:16]} 47. Ra8 {[%clk 0:00:55]}  Kf4 {[%clk 0:00:16]} 48. Bc6 {[%clk 0:00:51]}  g5 {[%clk 0:00:16]} 49. Ra4+ {[%clk 0:00:50]}  Ke3 {[%clk 0:00:16]} 50. Ra5 {[%clk 0:00:49]}  Kf4 {[%clk 0:00:13]} 51. Bd7 {[%clk 0:00:46]}  Ne5 {[%clk 0:00:13]} 52. Ra4+ {[%clk 0:00:44]}  Ke3 {[%clk 0:00:10]} 53. Bxf5 {[%clk 0:00:44]}  Nf3+ {[%clk 0:00:09]} 54. Kg3 {[%clk 0:00:44]}  Nd4 {[%clk 0:00:10]} 55. Ra3+ {[%clk 0:00:42]}  Ke2 {[%clk 0:00:09]} 56. Kg4 {[%clk 0:00:39]}  Kf2 {[%clk 0:00:05]} 57. Be4 {[%clk 0:00:38]}  Rb5 {[%clk 0:00:04]} 58. Rd3 {[%clk 0:00:33]}  Ne2 {[%clk 0:00:05]} 59. Rf3+ {[%clk 0:00:32]}  Ke1 {[%clk 0:00:05]} 60. a3 {[%clk 0:00:29]}  Ra5 {[%clk 0:00:05]} 61. Re3 {[%clk 0:00:26]}  Kd2 {[%clk 0:00:06]} 62. Rd3+ {[%clk 0:00:26]}  Ke1 {[%clk 0:00:06]} 63. Kf3 {[%clk 0:00:23]}  Ng1+ {[%clk 0:00:06]} 64. Ke3 {[%clk 0:00:22]}  Ra4 {[%clk 0:00:06]} 65. Rb3 {[%clk 0:00:22]}  Kd1 {[%clk 0:00:04]} 66. Rb1# {[%clk 0:00:21]} 1-0


[Site "https://www.chess.com"]

[Event "Titled Tuesday Blitz January 04 2022"]
[White "Baglan, Esat"]
[Black "Theodorou, Nikolas"]
[WhiteFideId "6309216"]
[BlackFideId "4262875"]
[WhiteElo "2107"]
[BlackElo "2472"]
[Result "0-1"]
[Round "01"]
[TimeControl "180+1"]
[Date "2022.01.04"]
[WhiteClock "0:00:35"]
[BlackClock "0:01:10"]

1. e4 {[%clk 0:02:53]}  e5 {[%clk 0:02:59]} 2. Nc3 {[%clk 0:02:49]}  Nf6 {[%clk 0:02:59]} 3. g3 {[%clk 0:02:50]}  Bc5 {[%clk 0:02:57]} 4. Bg2 {[%clk 0:02:49]}  a5 {[%clk 0:02:56]} 5. Nge2 {[%clk 0:02:47]}  Nc6 {[%clk 0:02:55]} 6. d3 {[%clk 0:02:44]}  d6 {[%clk 0:02:54]} 7. h3 {[%clk 0:02:44]}  a4 {[%clk 0:02:53]} 8. a3 {[%clk 0:02:43]}  O-O {[%clk 0:02:52]} 9. O-O {[%clk 0:02:43]}  h6 {[%clk 0:02:52]} 10. Kh2 {[%clk 0:02:43]}  Nd4 {[%clk 0:02:34]} 11. f4 {[%clk 0:02:42]}  Nh7 {[%clk 0:02:31]} 12. f5 {[%clk 0:02:40]}  c6 {[%clk 0:02:27]} 13. Bd2 {[%clk 0:02:24]}  b5 {[%clk 0:02:26]} 14. Nxd4 {[%clk 0:02:13]}  Bxd4 {[%clk 0:02:27]} 15. Qh5 {[%clk 0:02:10]}  Nf6 {[%clk 0:02:24]} 16. Qh4 {[%clk 0:02:10]}  Nh7 {[%clk 0:02:23]} 17. Qh5 {[%clk 0:02:10]}  Ra7 {[%clk 0:02:15]} 18. Rae1 {[%clk 0:02:07]}  Nf6 {[%clk 0:02:15]} 19. Qh4 {[%clk 0:02:07]}  Nh7 {[%clk 0:02:16]} 20. Qh5 {[%clk 0:02:07]}  Rb7 {[%clk 0:02:09]} 21. Nd1 {[%clk 0:02:07]}  Nf6 {[%clk 0:02:09]} 22. Qh4 {[%clk 0:02:06]}  Nh7 {[%clk 0:02:09]} 23. Qh5 {[%clk 0:02:07]}  Bd7 {[%clk 0:01:54]} 24. c3 {[%clk 0:02:06]}  Bb6 {[%clk 0:01:52]} 25. Ne3 {[%clk 0:01:56]}  Nf6 {[%clk 0:01:50]} 26. Qh4 {[%clk 0:01:53]}  Nh7 {[%clk 0:01:51]} 27. Qh5 {[%clk 0:01:52]}  Be8 {[%clk 0:01:51]} 28. Qe2 {[%clk 0:01:40]}  f6 {[%clk 0:01:48]} 29. h4 {[%clk 0:01:36]}  Rd7 {[%clk 0:01:45]} 30. Rd1 {[%clk 0:01:36]}  d5 {[%clk 0:01:44]} 31. Ng4 {[%clk 0:01:36]}  Kh8 {[%clk 0:01:39]} 32. Bf3 {[%clk 0:01:35]}  Bf7 {[%clk 0:01:39]} 33. Be3 {[%clk 0:01:35]}  d4 {[%clk 0:01:38]} 34. Bd2 {[%clk 0:01:33]}  Bb3 {[%clk 0:01:38]} 35. Rc1 {[%clk 0:01:20]}  dxc3 {[%clk 0:01:18]} 36. Rxc3 {[%clk 0:01:21]}  c5 {[%clk 0:01:19]} 37. Be3 {[%clk 0:01:04]}  c4 {[%clk 0:01:19]} 38. Bxb6 {[%clk 0:01:00]}  Qxb6 {[%clk 0:01:20]} 39. Qf2 {[%clk 0:01:00]}  Qxf2+ {[%clk 0:01:16]} 40. Nxf2 {[%clk 0:01:01]}  Rfd8 {[%clk 0:01:16]} 41. dxc4 {[%clk 0:00:56]}  Bxc4 {[%clk 0:01:16]} 42. Rfc1 {[%clk 0:00:53]}  Rd2 {[%clk 0:01:16]} 43. Kg1 {[%clk 0:00:52]}  Rxb2 {[%clk 0:01:15]} 44. Rxc4 {[%clk 0:00:52]}  bxc4 {[%clk 0:01:16]} 45. Rxc4 {[%clk 0:00:53]}  Rb3 {[%clk 0:01:14]} 46. Bd1 {[%clk 0:00:41]}  Rxg3+ {[%clk 0:01:13]} 47. Kh2 {[%clk 0:00:41]}  Rxa3 {[%clk 0:01:14]} 48. Bxa4 {[%clk 0:00:40]}  Nf8 {[%clk 0:01:12]} 49. Bc6 {[%clk 0:00:39]}  Rd4 {[%clk 0:01:11]} 50. Rc5 {[%clk 0:00:35]}  Rd2 {[%clk 0:01:10]} 51. Kg2 {[%clk 0:00:35]}  Raa2 {[%clk 0:01:10]} 0-1


[Site "https://www.chess.com"]

[Event "Titled Tuesday Blitz January 04 2022"]
[White "Bortnyk, Olexandr"]
[Black "Papp, Petra"]
[WhiteFideId "14120828"]
[BlackFideId "739049"]
[WhiteElo "2723"]
[BlackElo "2259"]
[Result "1-0"]
[Round "01"]
[TimeControl "180+1"]
[Date "2022.01.04"]
[WhiteClock "0:00:06"]
[BlackClock "0:00:07"]

1. e4 {[%clk 0:02:57]}  d6 {[%clk 0:02:50]} 2. d4 {[%clk 0:02:56]}  Nf6 {[%clk 0:02:50]} 3. Nc3 {[%clk 0:02:56]}  e5 {[%clk 0:02:49]} 4. Nf3 {[%clk 0:02:52]}  Nbd7 {[%clk 0:02:47]} 5. g4 {[%clk 0:02:52]}  Nxg4 {[%clk 0:02:45]} 6. Rg1 {[%clk 0:02:50]}  Ngf6 {[%clk 0:02:39]} 7. Bc4 {[%clk 0:02:50]}  h6 {[%clk 0:02:38]} 8. Be3 {[%clk 0:02:43]}  c6 {[%clk 0:02:31]} 9. dxe5 {[%clk 0:02:41]}  dxe5 {[%clk 0:02:20]} 10. Qe2 {[%clk 0:02:36]}  Qa5 {[%clk 0:02:13]} 11. O-O-O {[%clk 0:02:34]}  b5 {[%clk 0:02:09]} 12. Bb3 {[%clk 0:02:32]}  Ba6 {[%clk 0:02:01]} 13. Qe1 {[%clk 0:02:05]}  g6 {[%clk 0:01:39]} 14. Nxe5 {[%clk 0:00:58]}  Nxe5 {[%clk 0:01:24]} 15. Nd5 {[%clk 0:00:58]}  Qd8 {[%clk 0:00:58]} 16. Nb4 {[%clk 0:00:05]}  Qc8 {[%clk 0:00:49]} 17. Qc3 {[%clk 0:00:05]}  Bxb4 {[%clk 0:00:11]} 18. Qxe5+ {[%clk 0:00:06]}  Be7 {[%clk 0:00:10]} 19. Bc5 {[%clk 0:00:06]}  Qb7 {[%clk 0:00:10]} 20. Rd6 {[%clk 0:00:07]}  Kf8 {[%clk 0:00:08]} 21. Rxf6 {[%clk 0:00:04]}  Bxc5 {[%clk 0:00:08]} 22. Qxc5+ {[%clk 0:00:03]}  Kg7 {[%clk 0:00:08]} 23. Rxf7+ {[%clk 0:00:03]}  Qxf7 {[%clk 0:00:09]} 24. Bxf7 {[%clk 0:00:03]}  Kxf7 {[%clk 0:00:09]} 25. Qxc6 {[%clk 0:00:04]}  Rae8 {[%clk 0:00:05]} 26. Qxg6+ {[%clk 0:00:04]}  Ke7 {[%clk 0:00:05]} 27. Qxa6 {[%clk 0:00:04]}  Rhg8 {[%clk 0:00:04]} 28. Rxg8 {[%clk 0:00:04]}  Rxg8 {[%clk 0:00:05]} 29. Qxa7+ {[%clk 0:00:05]}  Kf6 {[%clk 0:00:06]} 30. Qb6+ {[%clk 0:00:05]}  Ke5 {[%clk 0:00:06]} 31. Qxb5+ {[%clk 0:00:05]}  Kf4 {[%clk 0:00:07]} 32. Qf5# {[%clk 0:00:06]} 1-0


[Site "https://www.chess.com"]

[Event "Titled Tuesday Blitz January 04 2022"]
[White "Demchenko, Anton"]
[Black "Rodchenkov, Sergey D."]
[WhiteFideId "4160258"]
[BlackFideId "4168712"]
[WhiteElo "2539"]
[BlackElo "2306"]
[Result "1-0"]
[Round "01"]
[TimeControl "180+1"]
[Date "2022.01.04"]
[WhiteClock "0:00:09"]
[BlackClock "0:00:08"]

1. e4 {[%clk 0:03:00]}  c5 {[%clk 0:02:58]} 2. Nf3 {[%clk 0:03:01]}  d6 {[%clk 0:02:58]} 3. d4 {[%clk 0:03:01]}  cxd4 {[%clk 0:02:59]} 4. Qxd4 {[%clk 0:03:01]}  Nc6 {[%clk 0:02:57]} 5. Qe3 {[%clk 0:03:01]}  g6 {[%clk 0:02:55]} 6. h3 {[%clk 0:03:02]}  Bg7 {[%clk 0:02:51]} 7. Nc3 {[%clk 0:03:01]}  Nf6 {[%clk 0:02:50]} 8. Bc4 {[%clk 0:03:01]}  O-O {[%clk 0:02:49]} 9. O-O {[%clk 0:03:02]}  Nd7 {[%clk 0:02:49]} 10. Rd1 {[%clk 0:03:02]}  Nde5 {[%clk 0:02:47]} 11. Nxe5 {[%clk 0:02:51]}  Nxe5 {[%clk 0:02:48]} 12. Bb3 {[%clk 0:02:51]}  Rb8 {[%clk 0:02:44]} 13. Qxa7 {[%clk 0:02:47]}  Bd7 {[%clk 0:02:43]} 14. Qe3 {[%clk 0:02:46]}  b5 {[%clk 0:02:42]} 15. Qe2 {[%clk 0:02:23]}  b4 {[%clk 0:02:28]} 16. Nd5 {[%clk 0:02:22]}  Bb5 {[%clk 0:02:29]} 17. Qe1 {[%clk 0:02:13]}  Bd7 {[%clk 0:02:09]} 18. Bg5 {[%clk 0:01:57]}  Re8 {[%clk 0:02:09]} 19. f4 {[%clk 0:01:56]}  Nc6 {[%clk 0:02:07]} 20. Rab1 {[%clk 0:01:38]}  h6 {[%clk 0:02:05]} 21. Bh4 {[%clk 0:01:37]}  Be6 {[%clk 0:02:04]} 22. Qf2 {[%clk 0:01:22]}  Bd7 {[%clk 0:01:32]} 23. Kh1 {[%clk 0:01:05]}  Na5 {[%clk 0:01:28]} 24. f5 {[%clk 0:01:02]}  g5 {[%clk 0:01:21]} 25. Bg3 {[%clk 0:01:01]}  Nxb3 {[%clk 0:01:20]} 26. axb3 {[%clk 0:01:01]}  Bc6 {[%clk 0:00:48]} 27. Rd3 {[%clk 0:00:48]}  Ra8 {[%clk 0:00:28]} 28. e5 {[%clk 0:00:40]}  Qa5 {[%clk 0:00:18]} 29. Nxe7+ {[%clk 0:00:34]}  Rxe7 {[%clk 0:00:17]} 30. f6 {[%clk 0:00:34]}  Bxf6 {[%clk 0:00:16]} 31. exf6 {[%clk 0:00:23]}  Re6 {[%clk 0:00:16]} 32. Rxd6 {[%clk 0:00:19]}  Rae8 {[%clk 0:00:17]} 33. Rxe6 {[%clk 0:00:19]}  Rxe6 {[%clk 0:00:18]} 34. Rd1 {[%clk 0:00:18]}  Re8 {[%clk 0:00:18]} 35. Kh2 {[%clk 0:00:18]}  Qb5 {[%clk 0:00:18]} 36. Rd2 {[%clk 0:00:17]}  Qb7 {[%clk 0:00:18]} 37. Qc5 {[%clk 0:00:15]}  Be4 {[%clk 0:00:17]} 38. Re2 {[%clk 0:00:13]}  Bc6 {[%clk 0:00:16]} 39. Rxe8+ {[%clk 0:00:12]}  Bxe8 {[%clk 0:00:17]} 40. Qd6 {[%clk 0:00:08]}  Bc6 {[%clk 0:00:18]} 41. Qd8+ {[%clk 0:00:08]}  Kh7 {[%clk 0:00:17]} 42. Qf8 {[%clk 0:00:09]}  Kg6 {[%clk 0:00:12]} 43. Qg7+ {[%clk 0:00:09]}  Kf5 {[%clk 0:00:13]} 44. Qh7+ {[%clk 0:00:08]}  Ke6 {[%clk 0:00:12]} 45. Qxh6 {[%clk 0:00:05]}  Bxg2 {[%clk 0:00:12]} 46. Qxg5 {[%clk 0:00:06]}  Qd5 {[%clk 0:00:12]} 47. Qxd5+ {[%clk 0:00:04]}  Bxd5 {[%clk 0:00:13]} 48. Be1 {[%clk 0:00:02]}  Be4 {[%clk 0:00:12]} 49. c3 {[%clk 0:00:02]}  Bc2 {[%clk 0:00:11]} 50. cxb4 {[%clk 0:00:03]}  Bxb3 {[%clk 0:00:12]} 51. Bc3 {[%clk 0:00:03]}  Kf5 {[%clk 0:00:12]} 52. Kg3 {[%clk 0:00:03]}  Bd5 {[%clk 0:00:12]} 53. h4 {[%clk 0:00:04]}  Be4 {[%clk 0:00:07]} 54. b5 {[%clk 0:00:04]}  Bd5 {[%clk 0:00:06]} 55. b6 {[%clk 0:00:05]}  Bc6 {[%clk 0:00:05]} 56. Kf2 {[%clk 0:00:05]}  Kg6 {[%clk 0:00:06]} 57. Ke3 {[%clk 0:00:06]}  Kh5 {[%clk 0:00:06]} 58. Kd4 {[%clk 0:00:06]}  Kxh4 {[%clk 0:00:07]} 59. Kc5 {[%clk 0:00:07]}  Bb7 {[%clk 0:00:07]} 60. Kd6 {[%clk 0:00:07]}  Ba6 {[%clk 0:00:08]} 61. Kc7 {[%clk 0:00:08]}  Kg4 {[%clk 0:00:08]} 62. b7 {[%clk 0:00:09]} 1-0


[Site "https://www.chess.com"]

[Event "Titled Tuesday Blitz January 04 2022"]
[White "Demin, Vladimir"]
[Black "Kamsky, Gata"]
[WhiteFideId "4167457"]
[BlackFideId "2000024"]
[WhiteElo "2463"]
[BlackElo "2645"]
[Result "1/2-1/2"]
[Round "01"]
[TimeControl "180+1"]
[Date "2022.01.04"]
[WhiteClock "0:00:51"]
[BlackClock "0:00:22"]

1. e4 {[%clk 0:03:00]}  e5 {[%clk 0:02:58]} 2. Nf3 {[%clk 0:03:00]}  Nc6 {[%clk 0:02:58]} 3. Bb5 {[%clk 0:03:00]}  Nf6 {[%clk 0:02:57]} 4. O-O {[%clk 0:03:00]}  Nxe4 {[%clk 0:02:57]} 5. d4 {[%clk 0:03:00]}  Nd6 {[%clk 0:02:56]} 6. dxe5 {[%clk 0:03:00]}  Nxb5 {[%clk 0:02:55]} 7. a4 {[%clk 0:03:00]}  Nbd4 {[%clk 0:02:55]} 8. Nxd4 {[%clk 0:02:59]}  Nxd4 {[%clk 0:02:55]} 9. Qxd4 {[%clk 0:03:00]}  d5 {[%clk 0:02:56]} 10. exd6 {[%clk 0:03:00]}  Qxd6 {[%clk 0:02:56]} 11. Qe4+ {[%clk 0:03:00]}  Qe6 {[%clk 0:02:56]} 12. Qd4 {[%clk 0:03:00]}  Qd6 {[%clk 0:02:57]} 13. Qe3+ {[%clk 0:02:59]}  Be7 {[%clk 0:02:51]} 14. Nc3 {[%clk 0:02:56]}  O-O {[%clk 0:02:47]} 15. Rd1 {[%clk 0:02:53]}  Qc5 {[%clk 0:02:47]} 16. Nd5 {[%clk 0:02:33]}  Qxe3 {[%clk 0:02:45]} 17. Bxe3 {[%clk 0:02:31]}  Bd6 {[%clk 0:02:45]} 18. c4 {[%clk 0:02:25]}  Be6 {[%clk 0:02:36]} 19. c5 {[%clk 0:02:22]}  Be5 {[%clk 0:02:36]} 20. Bd4 {[%clk 0:02:10]}  Bxd5 {[%clk 0:02:35]} 21. Bxe5 {[%clk 0:02:10]}  c6 {[%clk 0:02:35]} 22. Bd6 {[%clk 0:02:09]}  Rfe8 {[%clk 0:02:35]} 23. Re1 {[%clk 0:02:09]}  f6 {[%clk 0:02:30]} 24. f3 {[%clk 0:02:09]}  Kf7 {[%clk 0:02:18]} 25. Kf2 {[%clk 0:02:07]}  h5 {[%clk 0:02:16]} 26. a5 {[%clk 0:02:05]}  a6 {[%clk 0:02:15]} 27. h4 {[%clk 0:02:03]}  g5 {[%clk 0:02:07]} 28. g3 {[%clk 0:01:59]}  Kg6 {[%clk 0:02:06]} 29. f4 {[%clk 0:01:48]}  gxh4 {[%clk 0:02:05]} 30. gxh4 {[%clk 0:01:48]}  Kf5 {[%clk 0:02:05]} 31. Rxe8 {[%clk 0:01:41]}  Rxe8 {[%clk 0:02:04]} 32. Re1 {[%clk 0:01:42]}  Rg8 {[%clk 0:02:04]} 33. Rg1 {[%clk 0:01:41]}  Rxg1 {[%clk 0:01:54]} 34. Kxg1 {[%clk 0:01:39]}  Ke4 {[%clk 0:01:55]} 35. Kf2 {[%clk 0:01:36]}  f5 {[%clk 0:01:54]} 36. Kg3 {[%clk 0:01:31]}  Kd3 {[%clk 0:01:54]} 37. Bc7 {[%clk 0:01:25]}  Kc4 {[%clk 0:01:52]} 38. Bb6 {[%clk 0:01:25]}  Kb3 {[%clk 0:01:53]} 39. Kf2 {[%clk 0:01:23]}  Kxb2 {[%clk 0:01:53]} 40. Kg3 {[%clk 0:01:21]}  Kc3 {[%clk 0:01:53]} 41. Bd8 {[%clk 0:01:20]}  Be6 {[%clk 0:01:47]} 42. Bb6 {[%clk 0:01:20]}  Kd4 {[%clk 0:01:45]} 43. Kf3 {[%clk 0:01:20]}  Kd3 {[%clk 0:01:45]} 44. Kg3 {[%clk 0:01:20]}  Ke4 {[%clk 0:01:44]} 45. Bc7 {[%clk 0:01:15]}  b5 {[%clk 0:01:36]} 46. axb6 {[%clk 0:01:07]}  Bc8 {[%clk 0:01:35]} 47. Kf2 {[%clk 0:01:04]}  Kd3 {[%clk 0:01:35]} 48. Kf3 {[%clk 0:01:00]}  Bb7 {[%clk 0:01:34]} 49. Be5 {[%clk 0:00:57]}  Kc4 {[%clk 0:01:31]} 50. Bd6 {[%clk 0:00:56]}  a5 {[%clk 0:01:28]} 51. Ke3 {[%clk 0:00:56]}  Kc3 {[%clk 0:00:47]} 52. Be5+ {[%clk 0:00:56]}  Kc4 {[%clk 0:00:37]} 53. Bd6 {[%clk 0:00:55]}  a4 {[%clk 0:00:30]} 54. Kd2 {[%clk 0:00:55]}  Kb3 {[%clk 0:00:24]} 55. Kc1 {[%clk 0:00:55]}  a3 {[%clk 0:00:23]} 56. Kb1 {[%clk 0:00:54]}  a2+ {[%clk 0:00:23]} 57. Ka1 {[%clk 0:00:54]}  Ba6 {[%clk 0:00:23]} 58. Be7 {[%clk 0:00:51]}  Bb7 {[%clk 0:00:22]} 59. Bd6 {[%clk 0:00:51]}  Ba6 {[%clk 0:00:22]} 60. Be7 {[%clk 0:00:51]}  Bb7 {[%clk 0:00:22]} 61. Bd6 {[%clk 0:00:51]} 1/2-1/2


[Site "https://www.chess.com"]

[Event "Titled Tuesday Blitz January 04 2022"]
[White "Drozdowski, Kacper"]
[Black "manmanlai1"]
[WhiteFideId "1136720"]
[WhiteElo "2507"]
[BlackElo "2491"]
[Result "1-0"]
[Round "01"]
[TimeControl "180+1"]
[Date "2022.01.04"]
[WhiteClock "0:02:08"]
[BlackClock "0:00:01"]

1. e4 {[%clk 0:03:00]}  e5 {[%clk 0:02:57]} 2. Nf3 {[%clk 0:03:01]}  Nc6 {[%clk 0:02:56]} 3. Bc4 {[%clk 0:03:00]}  Bc5 {[%clk 0:02:24]} 4. c3 {[%clk 0:03:00]}  Nf6 {[%clk 0:02:22]} 5. d3 {[%clk 0:02:59]}  d6 {[%clk 0:02:00]} 6. Bb3 {[%clk 0:02:58]}  a6 {[%clk 0:01:53]} 7. Nbd2 {[%clk 0:02:58]}  Ba7 {[%clk 0:01:51]} 8. h3 {[%clk 0:02:58]}  Ne7 {[%clk 0:01:16]} 9. Nf1 {[%clk 0:02:57]}  Ng6 {[%clk 0:01:16]} 10. Ng3 {[%clk 0:02:57]}  O-O {[%clk 0:01:16]} 11. O-O {[%clk 0:02:53]}  h6 {[%clk 0:01:14]} 12. d4 {[%clk 0:02:52]}  c6 {[%clk 0:01:13]} 13. Re1 {[%clk 0:02:51]}  exd4 {[%clk 0:00:52]} 14. cxd4 {[%clk 0:02:51]}  Re8 {[%clk 0:00:43]} 15. Bc2 {[%clk 0:02:51]}  c5 {[%clk 0:00:36]} 16. Be3 {[%clk 0:02:51]}  cxd4 {[%clk 0:00:36]} 17. Bxd4 {[%clk 0:02:51]}  Bxd4 {[%clk 0:00:33]} 18. Qxd4 {[%clk 0:02:52]}  Be6 {[%clk 0:00:33]} 19. Rad1 {[%clk 0:02:50]}  Rc8 {[%clk 0:00:33]} 20. Bb1 {[%clk 0:02:50]}  Qa5 {[%clk 0:00:29]} 21. a3 {[%clk 0:02:44]}  Red8 {[%clk 0:00:28]} 22. Rc1 {[%clk 0:02:36]}  Rc6 {[%clk 0:00:25]} 23. Qe3 {[%clk 0:02:29]}  Ne5 {[%clk 0:00:23]} 24. Nd4 {[%clk 0:02:29]}  Rxc1 {[%clk 0:00:23]} 25. Rxc1 {[%clk 0:02:30]}  Rc8 {[%clk 0:00:20]} 26. b4 {[%clk 0:02:24]}  Qd8 {[%clk 0:00:16]} 27. Ngf5 {[%clk 0:02:20]}  Rxc1+ {[%clk 0:00:11]} 28. Qxc1 {[%clk 0:02:19]}  Bxf5 {[%clk 0:00:06]} 29. Nxf5 {[%clk 0:02:19]}  d5 {[%clk 0:00:05]} 30. exd5 {[%clk 0:02:18]}  g6 {[%clk 0:00:05]} 31. Ne3 {[%clk 0:02:10]}  Qd6 {[%clk 0:00:01]} 32. Qc3 {[%clk 0:02:08]} 1-0


[Site "https://www.chess.com"]

[Event "Titled Tuesday Blitz January 04 2022"]
[White "Jain, Naveen"]
[Black "Costachi, Mihnea"]
[WhiteFideId "5003970"]
[BlackFideId "1217518"]
[WhiteElo "2036"]
[BlackElo "2464"]
[Result "0-1"]
[Round "01"]
[TimeControl "180+1"]
[Date "2022.01.04"]
[WhiteClock "0:00:46"]
[BlackClock "0:01:09"]

1. c4 {[%clk 0:02:59]}  Nf6 {[%clk 0:02:58]} 2. g3 {[%clk 0:02:59]}  g6 {[%clk 0:02:57]} 3. Bg2 {[%clk 0:02:58]}  Bg7 {[%clk 0:02:58]} 4. Nc3 {[%clk 0:02:59]}  O-O {[%clk 0:02:58]} 5. Nf3 {[%clk 0:03:00]}  c6 {[%clk 0:02:56]} 6. O-O {[%clk 0:02:59]}  d5 {[%clk 0:02:56]} 7. cxd5 {[%clk 0:03:00]}  cxd5 {[%clk 0:02:56]} 8. d4 {[%clk 0:03:00]}  Ne4 {[%clk 0:02:57]} 9. Ne5 {[%clk 0:03:00]}  Nxc3 {[%clk 0:02:54]} 10. bxc3 {[%clk 0:02:58]}  Nc6 {[%clk 0:02:53]} 11. Nxc6 {[%clk 0:02:58]}  bxc6 {[%clk 0:02:52]} 12. Qa4 {[%clk 0:02:58]}  Bd7 {[%clk 0:02:44]} 13. Qa3 {[%clk 0:02:41]}  e5 {[%clk 0:02:41]} 14. dxe5 {[%clk 0:02:35]}  Bxe5 {[%clk 0:02:40]} 15. Be3 {[%clk 0:02:35]}  Qf6 {[%clk 0:02:34]} 16. Rac1 {[%clk 0:02:33]}  h5 {[%clk 0:02:33]} 17. Qc5 {[%clk 0:02:18]}  Rfb8 {[%clk 0:02:23]} 18. Bd4 {[%clk 0:02:16]}  Rb2 {[%clk 0:02:19]} 19. e4 {[%clk 0:02:06]}  Bxd4 {[%clk 0:02:17]} 20. cxd4 {[%clk 0:02:06]}  dxe4 {[%clk 0:02:16]} 21. Bxe4 {[%clk 0:02:02]}  Rxa2 {[%clk 0:02:07]} 22. Bxc6 {[%clk 0:02:02]}  Bxc6 {[%clk 0:02:06]} 23. Qxc6 {[%clk 0:02:00]}  Qxc6 {[%clk 0:02:04]} 24. Rxc6 {[%clk 0:02:00]}  Rd8 {[%clk 0:02:04]} 25. Rd1 {[%clk 0:01:58]}  Rd5 {[%clk 0:02:04]} 26. Rc5 {[%clk 0:01:52]}  Rd6 {[%clk 0:02:00]} 27. d5 {[%clk 0:01:51]}  Raa6 {[%clk 0:01:51]} 28. Rb1 {[%clk 0:01:42]}  Kg7 {[%clk 0:01:50]} 29. Rb7 {[%clk 0:01:41]}  Rf6 {[%clk 0:01:47]} 30. Rcc7 {[%clk 0:01:33]}  Ra1+ {[%clk 0:01:41]} 31. Kg2 {[%clk 0:01:26]}  Ra2 {[%clk 0:01:42]} 32. Rxa7 {[%clk 0:01:16]}  Raxf2+ {[%clk 0:01:09]} 33. Kg1 {[%clk 0:01:00]}  Rf1+ {[%clk 0:01:08]} 34. Kg2 {[%clk 0:01:00]}  R6f2+ {[%clk 0:01:09]} 35. Kh3 {[%clk 0:01:00]}  Rh1 {[%clk 0:01:10]} 36. g4 {[%clk 0:00:46]}  Rhxh2+ {[%clk 0:01:09]} 37. Kg3 {[%clk 0:00:46]}  h4# {[%clk 0:01:09]} 0-1


[Site "https://www.chess.com"]

[Event "Titled Tuesday Blitz January 04 2022"]
[White "Kobalia, Mikhail"]
[Black "Berezin, Viktor"]
[WhiteFideId "4119150"]
[BlackFideId "14107872"]
[WhiteElo "2667"]
[BlackElo "2310"]
[Result "1-0"]
[Round "01"]
[TimeControl "180+1"]
[Date "2022.01.04"]
[WhiteClock "0:01:54"]
[BlackClock "0:01:01"]

1. e4 {[%clk 0:02:59]}  d5 {[%clk 0:02:59]} 2. exd5 {[%clk 0:02:59]}  Nf6 {[%clk 0:02:57]} 3. d4 {[%clk 0:02:58]}  Bg4 {[%clk 0:02:56]} 4. Be2 {[%clk 0:02:57]}  Bxe2 {[%clk 0:02:54]} 5. Qxe2 {[%clk 0:02:57]}  Qxd5 {[%clk 0:02:52]} 6. Nf3 {[%clk 0:02:57]}  e6 {[%clk 0:02:46]} 7. c4 {[%clk 0:02:56]}  Qf5 {[%clk 0:02:39]} 8. Nc3 {[%clk 0:02:56]}  Nc6 {[%clk 0:02:33]} 9. h3 {[%clk 0:02:56]}  O-O-O {[%clk 0:02:28]} 10. Be3 {[%clk 0:02:55]}  Bb4 {[%clk 0:02:23]} 11. O-O {[%clk 0:02:54]}  Bxc3 {[%clk 0:02:20]} 12. bxc3 {[%clk 0:02:53]}  Ne4 {[%clk 0:02:14]} 13. Qb2 {[%clk 0:02:45]}  Na5 {[%clk 0:02:11]} 14. c5 {[%clk 0:02:41]}  b6 {[%clk 0:01:58]} 15. Ne5 {[%clk 0:02:39]}  Rhf8 {[%clk 0:01:55]} 16. Qb5 {[%clk 0:02:31]}  f6 {[%clk 0:01:49]} 17. Nc4 {[%clk 0:02:17]}  Nxc4 {[%clk 0:01:45]} 18. Qxc4 {[%clk 0:02:13]}  Qd5 {[%clk 0:01:41]} 19. Qa6+ {[%clk 0:02:09]}  Qb7 {[%clk 0:01:39]} 20. Qa3 {[%clk 0:02:09]}  e5 {[%clk 0:01:35]} 21. Rfe1 {[%clk 0:02:06]}  Rfe8 {[%clk 0:01:26]} 22. Rad1 {[%clk 0:02:05]}  exd4 {[%clk 0:01:14]} 23. cxd4 {[%clk 0:02:04]}  Qd5 {[%clk 0:01:06]} 24. Qxa7 {[%clk 0:02:01]}  Qb7 {[%clk 0:01:04]} 25. Qa3 {[%clk 0:01:59]}  Qd5 {[%clk 0:01:04]} 26. Rc1 {[%clk 0:01:59]}  b5 {[%clk 0:01:00]} 27. c6 {[%clk 0:01:57]}  Kb8 {[%clk 0:01:01]} 28. Qa6 {[%clk 0:01:54]}  Nd6 {[%clk 0:01:01]} 29. Bf4 {[%clk 0:01:54]} 1-0


[Site "https://www.chess.com"]